fUSD/lending_fUSD_20260126
["ID","MTS","AMOUNT","RATE_DAILY","PERIOD"]
[403658978,1769450849329,-155.85716202,0.00041841,73]
[403658979,1769450849373,-152.0,0.000419,120]
[403658980,1769450849413,-150.0,0.00041918,120]
[403658981,1769450849453,-2640.0573,0.00041918,30]
[403658982,1769450849495,-1000.0,0.00042,120]
[403658983,1769450849542,-500.0,0.00042,120]
[403658984,1769450849584,-352.0,0.00042046,90]
[403658985,1769450849624,-153.0,0.000422,120]
[403658986,1769450849665,-152.0,0.000425,120]
[403658987,1769450849711,-151.0,0.000425,120]
[403658988,1769450849756,-151.0,0.000425,120]
[403658989,1769450849801,-151.0,0.000425,120]
[403658990,1769450849846,-151.0,0.000425,120]
[403658991,1769450849891,-151.0,0.000425,120]
[403658992,1769450849935,-192.34248,0.000425,120]
[403658993,1769450849981,-151.0,0.000425,120]
[403658994,1769450850026,-151.0,0.000425,120]
[403658995,1769450850073,-151.0,0.000425,120]
[403658996,1769450850117,-151.0,0.000425,120]
[403658997,1769450850157,-151.0,0.000425,120]
[403658998,1769450850195,-151.0,0.000425,120]
[403658999,1769450850235,-151.0,0.000425,120]
[403659000,1769450850277,-151.0,0.000425,120]
[403659001,1769450850317,-151.0,0.000425,120]
[403659002,1769450850356,-151.0,0.000425,120]
[403659003,1769450850410,-151.0,0.000425,120]
[403659004,1769450850453,-151.0,0.000425,120]
[403659005,1769450850495,-151.0,0.000425,120]
[403659006,1769450850540,-151.0,0.000425,120]
[403659007,1769450850585,-151.0,0.000425,120]
[403659008,1769450850630,-151.0,0.000425,120]
[403659009,1769450850674,-496.418617,0.000425,120]
[403659010,1769450850719,-496.418617,0.000425,120]
[403659011,1769450850764,-496.418617,0.000425,120]
[403659012,1769450850810,-496.418617,0.000425,120]
[403659013,1769450850854,-151.0,0.000425,120]
[403659014,1769450850896,-166.207953,0.000425,120]
[403659015,1769450850939,-151.0,0.000425,120]
[403659016,1769450850986,-151.0,0.000425,60]
[403659017,1769450851028,-151.0,0.000425,120]
[403659018,1769450851068,-151.0,0.000425,120]
[403659019,1769450851109,-151.0,0.000425,120]
[403659020,1769450851148,-151.0,0.000425,120]
[403659021,1769450851188,-151.0,0.000425,120]
[403659022,1769450851228,-151.0,0.000425,120]
[403659023,1769450851269,-151.0,0.000425,120]
[403659024,1769450851310,-151.0,0.000425,120]
[403659025,1769450851352,-151.0,0.000425,120]
[403659026,1769450851393,-151.0,0.000425,120]
[403659027,1769450851434,-151.0,0.000425,120]
[403659028,1769450851473,-279.184609,0.000425,120]
[403659029,1769450851514,-151.0,0.000425,120]
[403659030,1769450851562,-151.0,0.000425,120]
[403659031,1769450851606,-151.0,0.000425,120]
[403659032,1769450851649,-151.0,0.000425,120]
[403659033,1769450851692,-151.0,0.000425,120]
[403659034,1769450851740,-151.0,0.000425,120]
[403659035,1769450851787,-151.0,0.000425,120]
[403659036,1769450851833,-151.0,0.000425,120]
[403659037,1769450851877,-198.201265,0.000425,120]
[403659038,1769450852191,-151.0,0.000425,120]
[403659039,1769450852237,-151.0,0.000425,120]
[403659040,1769450852283,-198.390311,0.000425,120]
[403659041,1769450852325,-198.390311,0.000425,120]
[403659042,1769450852365,-151.0,0.000425,120]
[403659043,1769450852406,-198.390311,0.000425,120]
[403659044,1769450852445,-198.390311,0.000425,120]
[403659045,1769450852486,-151.0,0.000425,120]
[403659046,1769450852526,-244.846364,0.000425,120]
[403659047,1769450852566,-244.846364,0.000425,120]
[403659048,1769450852607,-244.846364,0.000425,120]
[403659049,1769450852647,-272.31094,0.000425,120]
[403659050,1769450852687,-244.846364,0.000425,120]
[403659051,1769450852729,-272.31094,0.000425,120]
[403659052,1769450852771,-272.31094,0.000425,120]
[403659053,1769450852812,-272.31094,0.000425,120]
[403659054,1769450852854,-151.0,0.000425,120]
[403659055,1769450852895,-151.0,0.000425,120]
[403659056,1769450852940,-500.0,0.000425,120]
[403659057,1769450852982,-195.683073,0.000425,120]
[403659058,1769450853022,-195.683073,0.000425,120]
[403659059,1769450853062,-195.683073,0.000425,120]
[403659060,1769450853104,-195.683073,0.000425,120]
[403659061,1769450853146,-163.516566,0.000425,120]
[403659062,1769450853187,-163.516566,0.000425,120]
[403659063,1769450853227,-163.516566,0.000425,120]
[403659064,1769450853268,-163.516566,0.000425,120]
[403659065,1769450853311,-830.966848,0.000425,120]
[403659066,1769450853350,-830.966848,0.000425,120]
[403659067,1769450853390,-830.966848,0.000425,120]
[403659068,1769450853429,-830.966848,0.000425,120]
[403659069,1769450853468,-173.74856,0.000425,90]
[403659070,1769450853506,-1015.153398,0.000425,120]
[403659071,1769450853544,-173.74856,0.000425,90]
[403659072,1769450853583,-1595.048426,0.000425,120]
[403659073,1769450853622,-395.194839,0.000425,120]
[403659074,1769450853661,-1015.153398,0.000425,120]
[403659075,1769450853703,-1595.048426,0.000425,120]
[403659076,1769450853748,-173.74856,0.000425,90]
[403659077,1769450853793,-395.194839,0.000425,120]
[403659078,1769450853838,-1015.153398,0.000425,120]
[403659079,1769450853883,-151.0,0.000425,120]
[403659080,1769450853929,-1595.048426,0.000425,120]
[403659081,1769450853975,-173.74856,0.000425,90]
[403659082,1769450854019,-395.194839,0.000425,120]
[403659083,1769450854064,-1015.153398,0.000425,120]
[403659084,1769450854108,-1595.048426,0.000425,120]
[403659085,1769450854151,-395.194839,0.000425,120]
[403659086,1769450854196,-313.728445,0.000425,120]
[403659087,1769450854239,-214.29825,0.000425,120]
[403659088,1769450854283,-313.728445,0.000425,120]
[403659089,1769450854329,-214.29825,0.000425,120]
[403659090,1769450854372,-313.728445,0.000425,120]
[403659091,1769450854413,-214.29825,0.000425,120]
[403659092,1769450854458,-313.728445,0.000425,120]
[403659093,1769450854498,-214.29825,0.000425,120]
[403659094,1769450854540,-151.0,0.000425,120]
[403659095,1769450854582,-151.0,0.000425,120]
[403659096,1769450854623,-308.509885,0.000425,120]
[403659097,1769450854672,-308.509885,0.000425,120]
[403659098,1769450854719,-308.509885,0.000425,120]
[403659099,1769450854764,-308.509885,0.000425,120]
[403659100,1769450854810,-180.0,0.000425,120]
[403659101,1769450854852,-151.0,0.000425,120]
[403659102,1769450854896,-151.0,0.000425,120]
[403659103,1769450854940,-180.0,0.000425,120]
[403659104,1769450854985,-259.430208,0.000425,120]
[403659105,1769450855029,-151.0,0.000425,120]
[403659106,1769450855073,-180.0,0.000425,120]
[403659107,1769450855118,-151.0,0.000425,120]
[403659108,1769450855161,-180.0,0.000425,120]
[403659109,1769450855201,-409.544846,0.000425,120]
[403659110,1769450855241,-6011.062708,0.000425,120]
[403659111,1769450855280,-409.544846,0.000425,120]
[403659112,1769450855320,-6011.062708,0.000425,120]
[403659113,1769450855360,-409.544846,0.000425,120]
[403659114,1769450855402,-151.0,0.000425,120]
[403659115,1769450855443,-6011.062708,0.000425,120]
[403659116,1769450855481,-409.544846,0.000425,120]
[403659117,1769450855713,-151.0,0.000425,120]
[403659118,1769450855764,-6011.062708,0.000425,120]
[403659119,1769450855814,-268.567618,0.000425,120]
[403659120,1769450855861,-268.567618,0.000425,120]
[403659121,1769450855912,-268.567618,0.000425,120]
[403659122,1769450855959,-268.567618,0.000425,120]
[403659123,1769450856005,-154.2,0.0004274,91]
[403659124,1769450856050,-122684.65481169,0.000429,120]
[403659125,1769450856095,-500212.69240984,0.000429,120]
[403659126,1769450856138,-210.0,0.0004295,30]
[403659127,1769450856186,-8372.67,0.00043,30]
[403659128,1769450856238,-153.0,0.00043,120]
[403659129,1769450856297,-157.15,0.00043,120]
[403659130,1769450856353,-1000.0,0.00043,120]
[403659131,1769450856413,-1000.0,0.00043,30]
[403659132,1769450856456,-500.0,0.00043,30]
[403659133,1769450856498,-500.0,0.00043,30]
[403659134,1769450856541,-500.0,0.00043,30]
[403659135,1769450856583,-500.0,0.00043,30]
[403659136,1769450856626,-500.0,0.00043,30]
[403659137,1769450856668,-500.0,0.00043,30]
[403659138,1769450856713,-500.0,0.00043,30]
[403659139,1769450856755,-500.0,0.00043,30]
[403659140,1769450856797,-500.0,0.00043,30]
[403659141,1769450856838,-500.0,0.00043,30]
[403659142,1769450856880,-500.0,0.00043,30]
[403659143,1769450856923,-500.0,0.00043,30]
[403659144,1769450856968,-500.0,0.00043,30]
[403659145,1769450857010,-500.0,0.00043,30]
[403659146,1769450857052,-500.0,0.00043,30]
[403659147,1769450857091,-500.0,0.00043,30]
[403659148,1769450857131,-500.0,0.00043,30]
[403659149,1769450857170,-500.0,0.00043,30]
[403659150,1769450857210,-405.8,0.00043,30]
[403659151,1769450857250,-500.0,0.00043,120]
[403659152,1769450857291,-150.0,0.00043001,120]
[403659153,1769450857335,-150.0,0.00043001,120]
[403659154,1769450857378,-172.41392403,0.000431,120]
[403659155,1769450857422,-767.8976,0.000431,120]
[403659156,1769450857460,-174.71192172,0.000431,120]
[403659157,1769450857506,-152.0,0.000431,120]
[403659158,1769450857547,-155.85716202,0.00043163,98]
[403659159,1769450857585,-151.0,0.00043395,120]
[403659160,1769450857624,-151.0,0.00043395,60]
[403659161,1769450857665,-151.0,0.00043395,120]
[403659162,1769450857708,-151.0,0.00043395,120]
[403659163,1769450857749,-151.0,0.00043395,120]
[403659164,1769450857790,-151.0,0.00043395,120]
[403659165,1769450857832,-151.0,0.00043395,120]
[403659166,1769450857874,-151.0,0.00043395,120]
[403659167,1769450857916,-151.0,0.00043395,120]
[403659168,1769450857959,-151.0,0.00043395,120]
[403659169,1769450858000,-151.0,0.00043395,120]
[403659170,1769450858040,-151.0,0.00043395,120]
[403659171,1769450858080,-151.0,0.00043395,120]
[403659172,1769450858119,-151.0,0.00043395,120]
[403659173,1769450858159,-151.0,0.00043395,120]
[403659174,1769450858196,-151.0,0.00043395,120]
[403659175,1769450858234,-151.0,0.00043395,120]
[403659176,1769450858273,-151.0,0.00043395,120]
[403659177,1769450858316,-198.390311,0.00043395,120]
[403659178,1769450858356,-198.390311,0.00043395,120]
[403659179,1769450858395,-198.390311,0.00043395,120]
[403659180,1769450858433,-198.390307,0.00043395,120]
[403659181,1769450858471,-500.0,0.000434,30]
[403659182,1769450858510,-500.0,0.000434,30]
[403659183,1769450858549,-500.0,0.000434,30]
[403659184,1769450858590,-500.0,0.000434,30]
[403659185,1769450858628,-500.0,0.000434,30]
[403659186,1769450858667,-500.0,0.000434,30]
[403659187,1769450858707,-500.0,0.000434,30]
[403659188,1769450858748,-500.0,0.000434,30]
[403659189,1769450858790,-37629.08940266,0.00043402,60]
[403659190,1769450859693,-151.0,0.00043403,120]
[403659191,1769450859733,-244.846364,0.00043403,120]
[403659192,1769450859773,-244.846364,0.00043403,120]
[403659193,1769450859811,-244.846364,0.00043403,120]
[403659194,1769450859849,-272.31094,0.00043403,120]
[403659195,1769450859887,-244.846372,0.00043403,120]
[403659196,1769450859928,-272.31094,0.00043403,120]
[403659197,1769450859971,-272.31094,0.00043403,120]
[403659198,1769450860011,-272.31094,0.00043403,120]
[403659199,1769450860051,-151.0,0.00043403,120]
[403659200,1769450860089,-151.0,0.00043403,120]
[403659201,1769450860127,-195.683073,0.00043403,120]
[403659202,1769450860164,-195.683073,0.00043403,120]
[403659203,1769450860199,-195.683073,0.00043403,120]
[403659204,1769450860235,-195.683074,0.00043403,120]
[403659205,1769450860272,-163.516566,0.00043403,120]
[403659206,1769450860310,-163.516566,0.00043403,120]
[403659207,1769450860348,-163.516566,0.00043403,120]
[403659208,1769450860386,-163.516558,0.00043403,120]
[403659209,1769450860422,-830.966848,0.00043403,120]
[403659210,1769450860458,-830.966848,0.00043403,120]
[403659211,1769450860494,-830.966848,0.00043403,120]
[403659212,1769450860531,-830.96684,0.00043403,120]
[403659213,1769450860569,-173.74856,0.00043403,90]
[403659214,1769450860605,-1015.153398,0.00043403,120]
[403659215,1769450860640,-173.74856,0.00043403,90]
[403659216,1769450860678,-1595.048426,0.00043403,120]
[403659217,1769450860716,-395.194839,0.00043403,120]
[403659218,1769450860753,-1015.153398,0.00043403,120]
[403659219,1769450860792,-1595.048426,0.00043403,120]
[403659220,1769450860828,-173.74856,0.00043403,90]
[403659221,1769450860866,-395.194839,0.00043403,120]
[403659222,1769450860904,-1015.153398,0.00043403,120]
[403659223,1769450860944,-1595.048426,0.00043403,120]
[403659224,1769450860984,-151.0,0.00043403,120]
[403659225,1769450861024,-173.74856,0.00043403,90]
[403659226,1769450861065,-395.194839,0.00043403,120]
[403659227,1769450861104,-1015.153398,0.00043403,120]
[403659228,1769450861143,-1595.048422,0.00043403,120]
[403659229,1769450861183,-395.194839,0.00043403,120]
[403659230,1769450861221,-313.728445,0.00043403,120]
[403659231,1769450861261,-214.29825,0.00043403,120]
[403659232,1769450861300,-313.728445,0.00043403,120]
[403659233,1769450861342,-214.29825,0.00043403,120]
[403659234,1769450861380,-313.728445,0.00043403,120]
[403659235,1769450861419,-214.29825,0.00043403,120]
[403659236,1769450861456,-313.728437,0.00043403,120]
[403659237,1769450861494,-214.298256,0.00043403,120]
[403659238,1769450861535,-151.0,0.00043403,120]
[403659239,1769450861575,-245.167113,0.00043403,120]
[403659240,1769450861614,-308.509885,0.00043403,120]
[403659241,1769450861653,-308.509885,0.00043403,120]
[403659242,1769450861693,-308.509885,0.00043403,120]
[403659243,1769450861735,-308.509889,0.00043403,120]
[403659244,1769450861774,-180.0,0.00043403,120]
[403659245,1769450861812,-151.0,0.00043403,120]
[403659246,1769450861850,-151.0,0.00043403,120]
[403659247,1769450861890,-180.0,0.00043403,120]
[403659248,1769450862170,-151.0,0.00043403,120]
[403659249,1769450862216,-180.0,0.00043403,120]
[403659250,1769450862258,-151.0,0.00043403,120]
[403659251,1769450862297,-180.0,0.00043403,120]
[403659252,1769450862339,-409.544846,0.00043403,120]
[403659253,1769450862378,-6011.062708,0.00043403,120]
[403659254,1769450862418,-409.544846,0.00043403,120]
[403659255,1769450862458,-6011.062708,0.00043403,120]
[403659256,1769450862498,-409.544846,0.00043403,120]
[403659257,1769450862539,-151.0,0.00043403,120]
[403659258,1769450862582,-6011.062708,0.00043403,120]
[403659259,1769450862623,-409.544842,0.00043403,120]
[403659260,1769450862665,-151.0,0.00043403,120]
[403659261,1769450862707,-6011.062712,0.00043403,120]
[403659262,1769450862748,-268.567618,0.00043403,120]
[403659263,1769450862789,-268.567618,0.00043403,120]
[403659264,1769450862829,-268.567618,0.00043403,120]
[403659265,1769450862868,-268.56761,0.00043403,120]
[403659266,1769450862908,-8209.44677084,0.00043416,30]
[403659267,1769450862946,-8209.44677084,0.00043416,30]
[403659268,1769450862984,-8209.44677084,0.00043416,30]
[403659269,1769450863021,-8209.44677084,0.00043416,30]
[403659270,1769450863059,-151.0,0.00043416,120]
[403659271,1769450863098,-151.0,0.00043416,120]
[403659272,1769450863136,-151.0,0.00043416,120]
[403659273,1769450863172,-151.0,0.00043416,120]
[403659274,1769450863207,-151.0,0.00043416,120]
[403659275,1769450863246,-151.0,0.00043416,120]
[403659276,1769450863286,-151.0,0.00043416,120]
[403659277,1769450863324,-151.0,0.00043416,120]
[403659278,1769450863360,-151.0,0.00043416,120]
[403659279,1769450863398,-151.0,0.00043416,120]
[403659280,1769450863435,-151.0,0.00043416,120]
[403659281,1769450863470,-241.0,0.00043416,120]
[403659282,1769450863508,-151.0,0.00043416,120]
[403659283,1769450863547,-151.0,0.00043427,120]
[403659284,1769450863589,-151.0,0.00043427,120]
[403659285,1769450863628,-192.324896,0.00043427,120]
[403659286,1769450863672,-151.0,0.00043427,120]
[403659287,1769450863720,-151.0,0.00043427,120]
[403659288,1769450863767,-151.0,0.00043427,120]
[403659289,1769450863812,-243.23504,0.00043427,120]
[403659290,1769450863854,-151.0,0.00043427,120]
[403659291,1769450863898,-151.0,0.00043427,120]
[403659292,1769450863941,-496.418617,0.00043427,120]
[403659293,1769450863983,-496.418617,0.00043427,120]
[403659294,1769450864025,-496.418617,0.00043427,120]
[403659295,1769450864065,-496.418617,0.00043427,120]
[403659296,1769450864106,-496.418617,0.00043427,120]
[403659297,1769450864145,-496.418617,0.00043427,120]
[403659298,1769450864183,-496.418617,0.00043427,120]
[403659299,1769450864221,-496.41861,0.00043427,120]
[403659300,1769450864262,-151.0,0.00043427,120]
[403659301,1769450864303,-151.0,0.00043427,120]
[403659302,1769450864345,-352.0,0.00043496,90]
[403659303,1769450864386,-500.0,0.000435,120]
[403659304,1769450864423,-153.0,0.000437,120]
[403659305,1769450864461,-152.0,0.000438,120]
[403659306,1769450864498,-500.0,0.00043835,80]
[403659307,1769450864536,-557.421181,0.00044,57]
[403659308,1769450864574,-500.0,0.00044,120]
[403659309,1769450864610,-199.87,0.000441,120]
[403659310,1769450864645,-1102.0,0.00044155,30]
[403659311,1769450864683,-500.0,0.00044383,85]
[403659312,1769450864723,-150.0,0.00044384,120]
[403659313,1769450864765,-767.8976,0.000444,120]
[403659314,1769450864811,-174.71192172,0.000444,120]
[403659315,1769450864849,-152.0,0.000444,120]
[403659316,1769450864888,-153.0,0.000444,120]
[403659317,1769450864928,-155.85716202,0.00044485,112]
[403659318,1769450864966,-500.0,0.000445,120]
[403659319,1769450865009,-500.0,0.00044931,90]
[403659320,1769450865048,-210.0,0.0004496,30]
[403659321,1769450865091,-152.0,0.00045,120]
[403659322,1769450865130,-200.23219292,0.00045,120]
[403659323,1769450865168,-500.0,0.00045,120]
[403659324,1769450865205,-153.0,0.000452,120]
[403659325,1769450865244,-500.0,0.00045479,95]
[403659326,1769450865280,-500.0,0.000455,120]
[403659327,1769450865318,-152.0,0.000456,120]
[403659328,1769450865576,-243.43809934,0.00045621,120]
[403659329,1769450865619,-767.8976,0.000458,120]
[403659330,1769450865661,-174.71192172,0.000458,120]
[403659331,1769450865705,-1137.38731483,0.00045807,114]
[403659332,1769450865752,-150.0,0.00045884,120]
[403659333,1769450865795,-153.0,0.000459,120]
[403659334,1769450865838,-1000.0,0.00046,30]
[403659335,1769450865881,-500.0,0.00046,120]
[403659336,1769450865924,-500.0,0.00046027,100]
[403659337,1769450865970,-150.0,0.00046111,30]
[403659338,1769450866014,-150.0,0.00046111,30]
[403659339,1769450866055,-150.0,0.00046111,30]
[403659340,1769450866094,-150.0,0.00046111,30]
[403659341,1769450866136,-150.0,0.00046111,30]
[403659342,1769450866176,-150.0,0.00046111,30]
[403659343,1769450866213,-254.3762214,0.00046111,30]
[403659344,1769450866251,-155.59197509,0.00046111,30]
[403659345,1769450866292,-150.0,0.00046111,30]
[403659346,1769450866333,-150.0,0.00046111,30]
[403659347,1769450866374,-150.0,0.00046111,30]
[403659348,1769450866417,-150.0,0.00046111,30]
[403659349,1769450866455,-150.0,0.00046111,30]
[403659350,1769450866494,-150.0,0.00046111,30]
[403659351,1769450866532,-150.0,0.00046245,30]
[403659352,1769450866569,-152.0,0.000463,120]
[403659353,1769450866606,-150.0,0.0004638,30]
[403659354,1769450866644,-150.0,0.00046452,30]
[403659355,1769450866683,-1102.0,0.00046479,30]
[403659356,1769450866728,-500.0,0.000465,120]
[403659357,1769450866773,-150.0,0.00046515,30]
[403659358,1769450866820,-150.0,0.00046538,30]
[403659359,1769450866863,-500.0,0.00046575,105]
[403659360,1769450866906,-150.0,0.00046623,30]
[403659361,1769450866950,-150.0,0.0004665,30]
[403659362,1769450866994,-153.0,0.000467,120]
[403659363,1769450867037,-150.0,0.00046751,30]
[403659364,1769450867079,-150.0,0.00046785,30]
[403659365,1769450867119,-150.0,0.00046794,30]
[403659366,1769450867159,-155.0,0.00046797,120]
[403659367,1769450867197,-715.47,0.000468,90]
[403659368,1769450867237,-740.32,0.000468,120]
[403659369,1769450867277,-200.0,0.00046829,120]
[403659370,1769450867317,-150.0,0.00046843,30]
[403659371,1769450867357,-150.0,0.00046843,30]
[403659372,1769450867395,-150.0,0.00046849,120]
[403659373,1769450867433,-152.0,0.000469,120]
[403659374,1769450867471,-150.0,0.0004692,30]
[403659375,1769450867508,-150.0,0.00046965,30]
[403659376,1769450867545,-150.0,0.00046965,30]
[403659377,1769450867584,-210.0,0.0004698,30]
[403659378,1769450867622,-500.0,0.00047,120]
[403659379,1769450867661,-500.0,0.00047,120]
[403659380,1769450867706,-150.0,0.00047054,30]
[403659381,1769450867750,-767.8976,0.000471,120]
[403659382,1769450867795,-500.0,0.00047123,110]
[403659383,1769450867838,-1137.38731483,0.00047129,115]
[403659384,1769450867880,-150.0,0.00047135,30]
[403659385,1769450867918,-150.0,0.00047135,30]
[403659386,1769450867958,-300.0,0.00047151,120]
[403659387,1769450867998,-300.0,0.00047151,120]
[403659388,1769450868037,-150.0,0.00047189,30]
[403659389,1769450868077,-150.0,0.00047324,30]
[403659390,1769450868120,-150.0,0.00047391,30]
[403659391,1769450868164,-150.0,0.00047391,30]
[403659392,1769450868210,-153.0,0.000474,120]
[403659393,1769450868254,-150.0,0.00047459,30]
[403659394,1769450868297,-150.0,0.0004747,120]
[403659395,1769450868341,-1000.00000001,0.00047474,120]
[403659396,1769450868382,-150.0,0.00047477,30]
[403659397,1769450868423,-152.0,0.000475,120]
[403659398,1769450868465,-500.0,0.000475,120]
[403659399,1769450868505,-150.0,0.00047574,30]
[403659400,1769450868544,-150.0,0.00047574,30]
[403659401,1769450868583,-150.0,0.00047594,30]
[403659402,1769450868623,-150.0,0.00047648,30]
[403659403,1769450868664,-500.0,0.00047671,115]
[403659404,1769450868705,-150.0,0.00047729,30]
[403659405,1769450868751,-150.0,0.00047818,30]
[403659406,1769450868798,-150.0,0.00047818,30]
[403659407,1769450868842,-150.0,0.00047818,30]
[403659408,1769450869038,-150.0,0.00047863,30]
[403659409,1769450869120,-1360.8,0.0004789,120]
[403659410,1769450869164,-150.0,0.00047998,30]
[403659411,1769450869206,-1000.0,0.00048,60]
[403659412,1769450869247,-150.0,0.00048032,30]
[403659413,1769450869286,-560.0,0.00048061,30]
[403659414,1769450869324,-153.0,0.000481,120]
[403659415,1769450869361,-150.0,0.00048133,30]
[403659416,1769450869398,-150.0,0.0004816,30]
[403659417,1769450869434,-150.0,0.0004816,30]
[403659418,1769450869469,-152.0,0.000482,120]
[403659419,1769450869508,-500.0,0.00048219,120]
[403659420,1769450869544,-150.0,0.00048245,30]
[403659421,1769450869580,-150.0,0.00048268,30]
[403659422,1769450869616,-150.0,0.00048306,30]
[403659423,1769450869654,-150.0,0.00048306,30]
[403659424,1769450869692,-301.1433787,0.00048399,61]
[403659425,1769450869729,-150.0,0.00048403,30]
[403659426,1769450869767,-1137.38731483,0.0004845,117]
[403659427,1769450869805,-767.8976,0.000485,120]
[403659428,1769450869844,-150.0,0.00048502,30]
[403659429,1769450869885,-290.39862941,0.00048524,83]
[403659430,1769450869928,-150.0,0.00048537,30]
[403659431,1769450869971,-150.0,0.00048672,30]
[403659432,1769450870010,-150.0,0.00048672,30]
[403659433,1769450870048,-150.0,0.00048672,30]
[403659434,1769450870085,-150.0,0.00048672,30]
[403659435,1769450870121,-150.0,0.00048672,30]
[403659436,1769450870156,-150.0,0.00048672,30]
[403659437,1769450870192,-150.0,0.00048672,30]
[403659438,1769450870229,-150.0,0.00048672,30]
[403659439,1769450870270,-560.0,0.00048687,30]
[403659440,1769450870314,-500.0,0.00048767,120]
[403659441,1769450870355,-218.58873503,0.00048778,120]
[403659442,1769450870395,-151.0,0.00048799,50]
[403659443,1769450870435,-280.03725112,0.00048799,50]
[403659444,1769450870476,-152.0,0.000488,120]
[403659445,1769450870514,-917.0,0.000488,30]
[403659446,1769450870552,-150.0,0.00048807,30]
[403659447,1769450870590,-150.0,0.00048843,30]
[403659448,1769450870626,-153.0,0.000489,120]
[403659449,1769450870662,-154.57530736,0.000489,120]
[403659450,1769450870703,-1102.0,0.00048925,30]
[403659451,1769450870746,-150.0,0.00048942,30]
[403659452,1769450870788,-210.0,0.0004899,30]
[403659453,1769450870827,-1000.0,0.00049,60]
[403659454,1769450870868,-1056.9,0.00049,120]
[403659455,1769450870910,-150.0,0.00049038,30]
[403659456,1769450870950,-150.0,0.00049038,30]
[403659457,1769450870991,-150.0,0.00049077,30]
[403659458,1769450871031,-150.0,0.00049099,30]
[403659459,1769450871068,-43962.86198578,0.00049103,120]
[403659460,1769450871106,-150.0,0.00049185,30]
[403659461,1769450871142,-150.0,0.00049185,30]
[403659462,1769450871180,-150.0,0.00049212,30]
[403659463,1769450871220,-500.0,0.00049225,120]
[403659464,1769450871261,-477.0,0.00049225,120]
[403659465,1769450871300,-500.0,0.00049225,120]
[403659466,1769450871341,-150.0,0.00049225,120]
[403659467,1769450871381,-150.0,0.00049225,120]
[403659468,1769450871417,-150.0,0.00049225,120]
[403659469,1769450871454,-150.0,0.00049225,120]
[403659470,1769450871494,-150.0,0.00049225,120]
[403659471,1769450871531,-150.0,0.00049225,120]
[403659472,1769450871570,-150.0,0.00049225,120]
[403659473,1769450871607,-500.0,0.00049225,120]
[403659474,1769450871645,-500.0,0.0004928,120]
[403659475,1769450871686,-477.0,0.0004928,120]
[403659476,1769450871726,-500.0,0.0004928,120]
[403659477,1769450871765,-250.0,0.0004928,120]